bitfinex/quotes_ETHUSD_20250807
["timestamp","ask_amount","ask_price","bid_price","bid_amount"]
[1754592476366,0.002,3821.1,3821.0,21.9146749]
[1754592476567,1e-08,3821.1,3821.0,22.9975749]
[1754592476769,1e-08,3821.2,3821.1,6.16704744]
[1754592476969,1e-08,3821.2,3821.1,7.11874744]
[1754592477967,1e-08,3821.2,3821.1,7.56314744]
[1754592478179,1e-08,3821.2,3821.1,9.77612672]
[1754592479132,1e-08,3821.2,3821.1,9.9736034]
[1754592480329,0.45170001,3821.2,3821.1,8.85092672]
[1754592480697,0.45170001,3821.2,3821.1,12.81092672]
[1754592482006,1e-08,3821.2,3821.1,12.26092672]
[1754592482226,0.45170001,3821.2,3821.1,12.26092672]
[1754592483913,0.94500001,3821.2,3821.1,12.25992672]
[1754592485352,0.94500001,3821.2,3821.1,9.57604744]
[1754592485982,0.45170001,3821.2,3821.1,9.57604744]
[1754592491863,1e-08,3821.2,3821.1,10.05144744]
[1754592492532,1e-08,3821.2,3821.1,14.32144744]
[1754592494239,1e-08,3821.2,3821.1,13.84604744]
[1754592494569,0.45170001,3821.2,3821.1,13.84604744]
[1754592495760,0.45170001,3821.2,3821.1,14.32144744]
[1754592496081,1e-08,3821.2,3821.1,14.32144744]
[1754592496744,0.45170001,3821.2,3821.1,13.84604744]
[1754592497066,1e-08,3821.2,3821.1,14.32144744]
[1754592500892,1e-08,3821.2,3821.1,14.32144744]
[1754592501386,1e-08,3821.2,3821.1,10.36244744]
[1754592501588,1e-08,3821.2,3821.1,14.32144744]
[1754592502081,1e-08,3821.2,3821.1,10.36244744]
[1754592502288,1e-08,3821.2,3821.1,14.32044744]
[1754592503283,1e-08,3821.2,3821.1,14.66409214]
[1754592503888,1e-08,3821.2,3821.1,10.70609214]
[1754592504068,1e-08,3821.2,3821.1,14.66409214]
[1754592504269,1e-08,3821.2,3821.1,10.70609214]
[1754592504481,1e-08,3821.2,3821.1,14.66409214]
[1754592505518,1e-08,3821.2,3821.1,10.70609214]
[1754592505659,1e-08,3821.2,3821.1,14.66409214]
[1754592507992,1e-08,3821.2,3821.1,10.70609214]
[1754592508196,1e-08,3821.2,3821.1,14.66409214]
[1754592508700,1e-08,3821.2,3821.1,15.13509214]
[1754592509396,1e-08,3821.2,3821.1,15.81629214]
[1754592509564,1e-08,3821.2,3821.1,16.25639214]
[1754592517370,1e-08,3821.2,3821.1,15.78539214]
[1754592517776,1e-08,3821.2,3821.1,10.80199214]
[1754592518005,0.44010001,3821.2,3821.1,14.75999214]
[1754592518303,0.44010001,3821.2,3821.1,14.31989214]
[1754592519197,1e-08,3821.2,3821.1,14.77499214]
[1754592519982,1e-08,3821.2,3821.1,15.21509214]
[1754592520204,1e-08,3821.2,3821.1,14.77499214]
[1754592524431,0.44010001,3821.2,3821.1,14.77499214]
[1754592525091,0.44010001,3821.2,3821.1,14.31989214]
[1754592525286,0.93460001,3821.2,3821.1,13.97624744]
[1754592526031,0.44010001,3821.2,3821.1,13.97624744]
[1754592526998,0.44010001,3821.2,3821.1,13.97524744]
[1754592528927,1e-08,3821.2,3821.1,14.43034744]
[1754592530738,0.44010001,3821.2,3821.1,13.97524744]
[1754592530938,1e-08,3821.2,3821.1,14.43034744]
[1754592531240,1e-08,3821.2,3821.1,17.11422672]
[1754592532820,1e-08,3821.2,3821.1,17.11522672]
[1754592534015,1e-08,3821.2,3821.1,17.58622672]
[1754592534437,1e-08,3821.2,3821.1,17.11522672]
[1754592534744,1e-08,3821.2,3821.1,16.66012672]
[1754592534957,1e-08,3821.2,3821.1,17.11522672]
[1754592535154,0.44010001,3821.2,3821.1,16.66012672]
[1754592537321,0.44010001,3821.2,3821.1,13.97624744]
[1754592537722,0.44010001,3821.2,3821.1,10.01924744]
[1754592537934,0.93460001,3821.2,3821.1,10.01924744]
[1754592539229,0.93460001,3821.2,3821.1,4.4022]
[1754592539420,0.93460001,3821.2,3821.1,4.271]
[1754592539625,1.28994431,3821.2,3821.1,4.271]
[1754592542860,1.28994431,3821.2,3821.1,0.001]
[1754592543025,0.93460001,3821.2,3821.1,0.001]
[1754592543226,15.43460001,3821.2,3821.1,0.001]
[1754592543652,14.50000001,3821.2,3821.1,2.61804744]
[1754592543925,1e-08,3821.2,3821.1,2.61804744]
[1754592544129,1e-08,3821.2,3821.1,3.24304744]
[1754592544344,1e-08,3821.2,3821.1,5.92692672]
[1754592545235,1e-08,3821.2,3821.1,3.24304744]
[1754592545437,0.45740001,3821.2,3821.1,7.01924744]
[1754592545658,1e-08,3821.2,3821.1,7.51304744]
[1754592550245,1e-08,3821.2,3821.1,10.51304744]
[1754592553068,0.45740001,3821.2,3821.1,10.01924744]
[1754592555337,0.45740001,3821.2,3821.1,10.51304744]
[1754592555746,1e-08,3821.2,3821.1,10.51304744]
[1754592559461,0.45740001,3821.2,3821.1,10.01924744]
[1754592562185,1e-08,3821.2,3821.1,10.51304744]
[1754592562382,0.45740001,3821.2,3821.1,10.01924744]
[1754592562684,1e-08,3821.2,3821.1,10.01924744]
[1754592562872,1e-08,3821.2,3821.1,10.51304744]
[1754592563385,0.45740001,3821.2,3821.1,10.01924744]
[1754592563687,1e-08,3821.2,3821.1,10.01924744]
[1754592563982,0.45740001,3821.2,3821.1,10.01924744]
[1754592565755,1e-08,3821.2,3821.1,10.51304744]
[1754592566156,1e-08,3821.2,3821.1,6.24304744]
[1754592566357,0.45740001,3821.2,3821.1,5.74924744]
[1754592569059,1e-08,3821.2,3821.1,6.23094744]
[1754592569678,0.45810001,3821.2,3821.1,5.74924744]
[1754592570389,0.45810001,3821.2,3821.1,6.23094744]
[1754592570584,1e-08,3821.2,3821.1,6.23094744]
[1754592572093,1e-08,3821.2,3821.1,5.74924744]
[1754592572273,0.45810001,3821.2,3821.1,5.74924744]
[1754592572474,1e-08,3821.2,3821.1,6.23094744]
[1754592575977,1e-08,3821.2,3821.1,16.60191757]
[1754592576176,1e-08,3821.2,3821.1,17.41441554]
[1754592576600,1e-08,3821.2,3821.1,21.37041554]
[1754592577998,1e-08,3821.2,3821.1,21.00711757]
[1754592578376,1e-08,3821.2,3821.1,20.55791757]
[1754592578696,1e-08,3821.2,3821.1,25.82711757]
[1754592578897,1e-08,3821.2,3821.1,28.51099685]
[1754592581305,1e-08,3821.2,3821.1,28.06179685]
[1754592583000,1e-08,3821.2,3821.1,28.51099685]
[1754592584409,1e-08,3821.2,3821.1,28.06179685]
[1754592584989,1e-08,3821.2,3821.1,27.51179685]
[1754592585580,1e-08,3821.2,3821.1,27.96099685]
[1754592585779,1e-08,3821.2,3821.1,28.51099685]
[1754592589075,1e-08,3821.2,3821.1,28.61579085]
[1754592598935,1e-08,3821.2,3821.1,28.16659085]
[1754592601127,1e-08,3821.2,3821.1,28.61789085]
[1754592602023,1e-08,3821.2,3821.1,28.16659085]
[1754592602440,0.46520001,3821.2,3821.1,27.13489085]
[1754592602645,0.46520001,3821.2,3821.1,24.45101157]
[1754592602939,0.91880001,3821.2,3821.1,24.45101157]
[1754592604240,0.46520001,3821.2,3821.1,24.45101157]
[1754592604811,1e-08,3821.2,3821.1,24.93821157]
[1754592605447,1e-08,3821.2,3821.1,25.48821157]
[1754592605739,1e-08,3821.2,3821.1,28.17209085]
[1754592606109,1e-08,3821.2,3821.1,27.68489085]
[1754592606449,0.46520001,3821.2,3821.1,27.68489085]
[1754592607843,0.46520001,3821.2,3821.1,27.13489085]
[1754592608024,0.46520001,3821.2,3821.1,23.17889085]
[1754592608221,0.91880001,3821.2,3821.1,5.85404144]
[1754592608425,0.91880001,3821.2,3821.1,5.74924744]
[1754592611664,0.46520001,3821.2,3821.1,5.74924744]
[1754592612926,0.91880001,3821.2,3821.1,5.74924744]
[1754592613704,0.91880001,3821.2,3821.1,10.01924744]
[1754592615758,0.46520001,3821.2,3821.1,10.01924744]
[1754592616749,1e-08,3821.2,3821.1,10.01924744]
[1754592616954,1e-08,3821.2,3821.1,14.46144744]
[1754592617877,0.46520001,3821.2,3821.1,13.97424744]
[1754592618979,0.46520001,3821.2,3821.1,10.01924744]
[1754592619683,0.46520001,3821.2,3821.1,7.4022]
[1754592619889,0.91880001,3821.2,3821.1,10.01924744]
[1754592620084,0.91880001,3821.2,3821.1,7.271]
[1754592620376,0.91880001,3821.2,3821.1,4.271]
[1754592620542,1.79926486,3821.2,3821.1,4.271]
[1754592621075,16.29926486,3821.2,3821.1,4.271]
[1754592621673,16.29926486,3821.2,3821.1,0.001]
[1754592622241,18.91624381,3821.2,3821.1,0.001]
[1754592623046,19.15975728,3821.2,3821.1,0.001]
[1754592623278,19.15966747,3821.2,3821.1,0.001]
[1754592623487,19.85966747,3821.2,3821.1,0.001]
[1754592624546,19.61624381,3821.2,3821.1,0.001]
[1754592624947,19.85959271,3821.2,3821.1,0.001]
[1754592625495,5.35953118,3821.2,3821.1,0.001]
[1754592625881,19.85953118,3821.2,3821.1,0.001]
[1754592629054,20.77564464,3821.2,3821.1,1e-08]
[1754592629772,24.22120743,3821.2,3821.1,1e-08]
[1754592630070,23.72436235,3821.2,3821.1,1e-08]
[1754592630582,23.82923935,3821.2,3821.1,1e-08]
[1754592632562,3.16725293,3820.8,3820.7,1e-08]
[1754592632794,21.51715138,3820.8,3820.7,1e-08]
[1754592633098,22.39963572,3820.8,3820.7,1e-08]
[1754592633401,36.89963572,3820.8,3820.7,1e-08]
[1754592633694,37.00378108,3820.8,3820.7,1e-08]
[1754592634056,36.76123035,3820.8,3820.7,1e-08]
[1754592634260,37.0036777,3820.8,3820.7,1e-08]
[1754592636596,36.76123035,3820.8,3820.7,1e-08]
[1754592636760,37.00356663,3820.8,3820.7,1e-08]
[1754592642680,36.76123035,3820.8,3820.7,1e-08]
[1754592642868,37.00341755,3820.8,3820.7,1e-08]
[1754592650438,15.98849709,3820.4,3820.3,0.001]
[1754592650604,21.12479249,3820.4,3820.3,0.001]
[1754592650937,21.55269249,3820.4,3820.3,0.001]
[1754592651849,21.55353975,3820.4,3820.3,0.001]
[1754592652055,21.55353976,3820.4,3820.3,0.001]
[1754592652455,21.55362947,3820.4,3820.3,0.001]
[1754592652753,21.55362947,3820.4,3819.9,0.001]
[1754592652754,2.61780104,3820.0,3819.9,0.001]
[1754592652919,20.73789535,3820.0,3819.9,0.001]
[1754592653125,23.2128573,3820.0,3819.9,0.001]
[1754592653326,37.7128573,3820.0,3819.9,0.001]
[1754592653939,38.6280573,3820.0,3819.9,0.001]
[1754592654152,39.24478259,3820.0,3819.9,0.001]
[1754592654932,39.2449221,3820.0,3819.9,0.001]
[1754592655936,38.7576221,3820.0,3819.9,0.001]
[1754592656141,38.3297221,3820.0,3819.9,0.001]
[1754592656561,38.3297221,3820.0,3819.9,0.4832]
[1754592656562,37.7797221,3820.0,3819.9,0.4832]
[1754592656865,27.40875197,3820.0,3819.9,0.4832]
[1754592660126,27.40875197,3820.0,3819.9,0.4814]
[1754592660327,23.79202668,3820.0,3819.9,0.9501]
[1754592660831,2.47496195,3820.0,3819.9,0.9501]
[1754592661012,6.67488011,3820.0,3819.9,0.9501]
[1754592661414,6.67492181,3820.0,3819.9,0.9501]
[1754592661615,2.71892181,3820.0,3819.9,0.9501]
[1754592661817,6.67492181,3820.0,3819.9,0.9501]
[1754592662897,6.43096195,3820.0,3819.9,0.9501]
[1754592663226,6.67493893,3820.0,3819.9,0.9501]
[1754592664648,2.58773893,3820.0,3819.9,3.56796957]
[1754592664857,2.58773893,3820.0,3819.9,4.18656164]
[1754592665000,6.54373893,3820.0,3819.9,4.18656164]
[1754592665344,6.29976195,3820.0,3819.9,4.18656164]
[1754592665700,6.29976195,3820.0,3819.9,1.56869207]
[1754592669241,6.29976195,3820.0,3819.9,0.001]
[1754592669444,6.43096195,3820.0,3819.9,0.4814]
[1754592670211,6.43096195,3820.0,3819.9,0.9501]
[1754592671107,6.43096195,3820.0,3819.9,0.001]
[1754592671314,7.07405815,3820.0,3819.9,0.001]
[1754592671738,9.69185919,3820.0,3819.9,0.001]
[1754592671933,10.16865919,3820.0,3819.9,0.001]
[1754592672138,10.59765919,3820.0,3819.9,0.001]
[1754592672750,10.84142085,3820.0,3819.9,0.001]
[1754592672933,25.34142085,3820.0,3819.9,0.001]
[1754592674945,24.43562085,3820.0,3819.9,0.001]
[1754592675643,21.17962085,3820.0,3819.9,0.4814]
[1754592675847,24.49152465,3820.0,3819.9,0.4814]
[1754592676235,25.39732465,3820.0,3819.9,0.001]
[1754592677722,25.15356299,3820.0,3819.9,0.001]
[1754592677920,25.39728141,3820.0,3819.9,0.001]
[1754592678351,25.39727672,3820.0,3819.9,0.001]
[1754592680356,24.49147672,3820.0,3819.9,0.001]
[1754592680550,20.53647672,3820.0,3819.9,0.001]
[1754592680852,24.49447857,3820.0,3819.9,0.001]
[1754592681722,25.40027857,3820.0,3819.9,0.001]
[1754592683623,25.40017725,3820.0,3819.9,0.001]
[1754592685959,24.49437725,3820.0,3819.9,0.4814]
[1754592686469,24.49337725,3820.0,3819.9,0.4814]
[1754592686761,24.24976299,3820.0,3819.9,0.4814]
[1754592686932,24.49333731,3820.0,3819.9,0.4814]
[1754592687134,20.53633731,3820.0,3819.9,0.4814]
[1754592687333,24.49333793,3820.0,3819.9,0.001]
[1754592687766,20.53633793,3820.0,3819.9,0.001]
[1754592688064,24.49333793,3820.0,3819.9,0.001]
[1754592689755,24.24976299,3820.0,3819.9,0.001]
[1754592689951,24.4923121,3820.0,3819.9,0.4586]
[1754592690167,24.4923121,3820.0,3819.9,0.918]
[1754592690360,24.4923121,3820.0,3819.9,0.4586]
[1754592690570,9.9923121,3820.0,3819.9,0.4586]
[1754592690948,24.4923121,3820.0,3819.9,0.4586]
[1754592693935,24.4923121,3820.0,3819.9,0.001]
[1754592694135,9.9923121,3820.0,3819.9,0.001]
[1754592694348,11.30292018,3820.0,3819.9,0.001]
[1754592694669,25.80292018,3820.0,3819.9,0.001]
[1754592695364,26.72732018,3820.0,3819.9,0.001]
[1754592696036,26.7273978,3820.0,3819.9,0.001]
[1754592697339,22.7713978,3820.0,3819.9,0.001]
[1754592697538,26.7273978,3820.0,3819.9,0.001]
[1754592698373,22.7713978,3820.0,3819.9,0.001]
[1754592698669,26.7273978,3820.0,3819.9,0.001]
[1754592698878,26.72752564,3820.0,3819.9,0.001]
[1754592702459,22.77152564,3820.0,3819.9,0.001]
[1754592702661,26.72752564,3820.0,3819.9,0.001]
[1754592703993,25.80312564,3820.0,3819.9,0.001]
[1754592704276,21.84712564,3820.0,3819.9,0.001]
[1754592704460,25.80312564,3820.0,3819.9,0.001]
[1754592704868,25.80347748,3820.0,3819.9,0.001]
[1754592705271,26.7278783,3820.0,3819.9,0.001]
[1754592705972,26.72787837,3820.0,3819.9,0.001]
[1754592708784,26.72787837,3820.0,3819.9,1e-08]
[1754592710377,2.61807519,3819.6,3819.5,0.001]
[1754592710558,17.61488607,3819.6,3819.5,0.001]
[1754592710761,20.76701832,3819.6,3819.5,0.001]
[1754592710960,35.26701832,3819.6,3819.5,0.001]
[1754592713767,23.72754089,3819.6,3819.5,0.001]
[1754592713961,23.97141316,3819.6,3819.5,0.001]
[1754592714368,20.01537917,3819.6,3819.5,0.001]
[1754592714587,20.01537917,3819.6,3819.5,0.4586]
[1754592714588,23.97137917,3819.6,3819.5,0.4586]
[1754592715305,19.62237165,3819.6,3819.5,0.4586]
[1754592715613,21.09149646,3819.6,3819.5,0.918]
[1754592716904,17.13549646,3819.6,3819.5,0.918]
[1754592717103,2.26045818,3819.6,3819.5,14.45711386]
[1754592717308,6.21745818,3819.6,3819.5,16.17776778]
[1754592717504,6.21745818,3819.6,3819.5,16.30896778]
[1754592718386,6.21745818,3819.6,3819.5,5.25679765]
[1754592719389,6.46131709,3819.6,3819.5,5.25679765]
[1754592719793,6.46130668,3819.6,3819.5,5.25679765]
[1754592720183,6.46130668,3819.6,3819.5,5.23749765]
[1754592720379,6.46130668,3819.6,3819.5,3.51684373]
[1754592721811,6.21745818,3819.6,3819.5,3.51684373]
[1754592721984,6.46123583,3819.6,3819.5,3.51684373]
[1754592722387,6.46123583,3819.6,3819.5,0.8987]
[1754592722791,6.46123583,3819.6,3819.5,3.51684373]
[1754592723295,6.46123583,3819.6,3819.5,0.4586]
[1754592723786,6.46123583,3819.6,3819.5,0.001]
[1754592724016,6.59243583,3819.6,3819.5,0.001]
[1754592724216,6.59243583,3819.6,3819.5,0.4695]
[1754592724606,6.59243583,3819.6,3819.5,0.001]
[1754592724802,6.59242746,3819.6,3819.5,0.001]
[1754592725209,6.59242746,3819.6,3819.5,0.4695]
[1754592725719,6.59242746,3819.6,3819.5,0.9096]
[1754592726090,6.59242746,3819.6,3819.5,0.4695]
[1754592726901,6.34865818,3819.6,3819.5,0.4695]
[1754592727491,6.34865818,3819.6,3819.5,0.9096]
[1754592727920,2.39165818,3819.6,3819.5,8.10868085]
[1754592728291,3.957,3819.9,3819.8,3.16793811]
[1754592728492,3.957,3820.1,3820.0,2.61780104]
[1754592728725,3.957,3820.1,3820.0,3.52640104]
[1754592731401,3.957,3820.1,3819.8,0.1312]
[1754592731741,3.957,3820.1,3819.6,3.0]
[1754592731742,0.1312,3820.0,3819.7,2.61798527]
[1754592731908,3.956,3819.9,3819.7,2.61798527]
[1754592732103,3.956,3819.9,3819.7,0.4685]
[1754592732500,3.956,3819.9,3819.7,3.4685]
[1754592733235,3.956,3819.9,3819.5,3.001]
[1754592733528,3.956,3819.9,3819.5,0.001]
[1754592733529,0.6187,3819.8,3819.5,0.001]
[1754592733746,3.957,3819.7,3819.5,0.001]
[1754592734938,3.98972508,3819.7,3819.5,0.001]
[1754592736267,3.957,3819.7,3819.5,0.001]
[1754592736803,3.98972508,3819.7,3819.5,0.001]
[1754592737413,3.957,3819.7,3819.5,0.001]
[1754592737615,4.8804,3819.7,3819.5,0.001]
[1754592738636,3.957,3819.7,3819.5,0.001]
[1754592739508,4.4445,3819.7,3819.5,0.001]
[1754592739711,4.8804,3819.7,3819.5,0.001]
[1754592740636,14.5,3819.6,3819.5,0.001]
[1754592741709,15.4234,3819.6,3819.5,0.001]
[1754592742003,14.5,3819.6,3819.5,0.001]
[1754592742205,20.14408577,3819.6,3819.5,0.001]
[1754592742411,20.27528577,3819.6,3819.5,0.001]
[1754592744446,19.35188577,3819.6,3819.5,0.001]
[1754592744645,24.23328577,3819.6,3819.5,0.001]
[1754592745750,24.2332474,3819.6,3819.5,0.001]
[1754592747953,23.3098474,3819.6,3819.5,0.001]
[1754592748151,23.8021474,3819.6,3819.5,0.001]
[1754592748314,24.2448474,3819.6,3819.5,0.001]
[1754592748663,24.24478077,3819.6,3819.5,0.001]
[1754592748830,23.30978077,3819.6,3819.5,0.001]
[1754592749019,24.24478077,3819.6,3819.5,0.001]
[1754592749215,23.30976195,3819.6,3819.5,0.001]
[1754592751148,20.69168676,3819.6,3819.5,0.001]
[1754592751345,23.30976195,3819.6,3819.5,0.001]
[1754592751522,16.73368676,3819.6,3819.5,0.4906]
[1754592751843,18.83286676,3819.6,3819.5,0.4906]
[1754592753621,14.87486676,3819.6,3819.5,0.4906]
[1754592753819,18.83286676,3819.6,3819.5,0.4906]
[1754592754020,18.83286676,3819.6,3819.5,0.9499]
[1754592754221,18.70166676,3819.6,3819.5,0.9499]
[1754592754647,18.70166676,3819.6,3819.5,0.4603]
[1754592754849,18.70166676,3819.6,3819.5,0.001]
[1754592755224,18.458,3819.6,3819.5,0.001]
[1754592755552,18.70161882,3819.6,3819.5,0.001]
[1754592756120,18.458,3819.6,3819.5,0.4906]
[1754592758837,14.5,3819.6,3819.5,3.10874373]
[1754592759044,0.002,3819.9,3819.6,2.61807519]
[1754592759240,4.0892,3819.8,3819.5,10.37197013]
[1754592759446,18.5892,3819.8,3819.6,0.9489]
[1754592759639,4.0892,3819.8,3819.6,0.4593]
[1754592759856,4.0892,3819.8,3819.7,0.4896]
[1754592760051,4.33292996,3819.8,3819.7,0.4896]
[1754592760256,4.33292996,3819.8,3819.5,0.001]
[1754592760563,4.0892,3819.8,3819.6,0.4896]
[1754592760858,0.03272508,3819.7,3819.5,0.001]
[1754592761043,3.958,3819.6,3819.5,0.001]
[1754592761361,4.33297228,3819.6,3819.5,0.001]
[1754592761666,18.5892,3819.6,3819.5,0.001]
[1754592762053,19.76812413,3819.6,3819.5,0.001]
[1754592763373,19.5242,3819.6,3819.5,0.001]
[1754592763678,19.76827392,3819.6,3819.5,0.001]
[1754592764018,19.5242,3819.6,3819.5,0.001]
[1754592764666,18.5892,3819.6,3819.5,0.4906]
[1754592764872,4.0892,3819.6,3819.5,0.001]
[1754592765244,4.20209914,3819.6,3819.5,0.4906]
[1754592765665,3.958,3819.6,3819.5,3.56800194]
[1754592765877,0.002,3819.9,3819.8,2.61793811]
[1754592766166,0.002,3819.9,3819.8,18.33891658]
[1754592766369,0.002,3819.9,3819.8,19.28781658]
[1754592767436,0.002,3819.9,3819.8,23.24681658]
[1754592768779,0.002,3820.3,3820.2,3.16766399]
[1754592769083,0.002,3820.3,3820.2,16.53863412]
[1754592769244,0.002,3820.3,3820.2,23.59026227]
[1754592782507,0.002,3820.3,3820.2,27.86026227]
[1754592785798,0.002,3820.3,3820.2,27.40096227]
[1754592788828,0.002,3820.3,3820.2,27.85086227]
[1754592789295,0.002,3820.7,3820.6,3.16738993]
[1754592789472,0.002,3820.7,3820.6,20.49336006]
[1754592789678,0.002,3820.7,3820.6,21.43626006]
[1754592790112,0.002,3820.7,3820.6,21.56746006]
[1754592792009,1e-08,3820.8,3820.7,6.16732143]
[1754592792207,0.002,3821.1,3821.0,3.16711593]
[1754592792535,0.002,3821.1,3821.0,17.62428606]
[1754592793187,0.002,3821.1,3821.0,18.11728606]
[1754592793382,0.002,3821.1,3821.0,18.56718606]
[1754592793991,0.002,3821.1,3821.0,18.11728606]
[1754592794225,0.4691,3821.6,3821.0,18.11728606]
[1754592794226,0.002,3821.6,3821.5,3.16677351]
[1754592794428,0.002,3822.9,3822.2,3.55]
[1754592794596,0.10477503,3823.9,3823.1,3.0]
[1754592794924,1.17361156,3823.8,3823.6,2.61529074]
[1754592795089,14.6304,3823.9,3823.7,2.61526793]
[1754592795419,0.24403035,3823.8,3823.5,2.61538359]
[1754592795604,0.24403035,3823.7,3823.6,2.61533633]
[1754592795811,0.9298,3823.7,3823.6,2.61533633]
[1754592796111,0.24403035,3823.8,3823.7,3.16526793]
[1754592796420,0.4627,3823.8,3823.7,3.16526793]
[1754592796583,0.9298,3823.8,3823.7,3.16526793]
[1754592799042,0.9298,3823.8,3823.6,6.57428726]
[1754592799202,17.11465298,3824.6,3823.6,6.57428726]
[1754592799203,0.9298,3823.7,3823.6,3.16533633]
[1754592800823,0.9298,3823.7,3823.6,7.12333633]
[1754592801041,0.24334517,3824.5,3823.8,2.61514854]
[1754592801245,0.9298,3824.1,3823.6,14.87897013]
[1754592801558,0.9298,3824.0,3823.8,2.61518244]
[1754592801734,0.9298,3823.9,3823.6,0.55]
[1754592801939,0.9298,3823.8,3823.5,3.0]
[1754592802137,2.61485762,3824.3,3823.5,5.61538225]
[1754592802337,2.61485762,3824.3,3823.6,2.61533633]
[1754592802338,0.9298,3823.7,3823.6,2.61533633]
[1754592802926,0.43709681,3824.2,3823.8,2.61514688]
[1754592803235,0.4671,3823.9,3823.8,2.61514688]
[1754592803534,0.9298,3823.9,3823.8,2.61514688]
[1754592804327,0.9298,3823.9,3823.4,3.0]
[1754592804540,0.9298,3823.8,3823.3,3.0]
[1754592804708,0.03268401,3824.5,3823.1,5.61562622]
[1754592804709,0.9298,3823.7,3823.1,5.61562622]
[1754592805050,0.9298,3823.6,3822.9,6.57381521]
[1754592805253,1.28429511,3823.6,3823.0,3.55]
[1754592805467,0.9298,3823.5,3823.3,2.61550571]
[1754592805753,0.9298,3823.4,3823.3,2.61550571]
[1754592806530,0.1304,3823.6,3823.4,2.61546938]
[1754592806744,0.9298,3823.5,3823.4,2.61546938]
[1754592807722,0.1304,3823.6,3823.5,3.16540473]
[1754592808121,0.4532,3823.8,3823.7,2.61526793]
[1754592808359,0.4532,3824.1,3823.6,12.98628267]
[1754592808569,0.1304,3824.1,3824.0,12.98603289]
[1754592808741,17.11458997,3824.7,3824.0,12.98603289]
[1754592808930,0.1304,3824.2,3824.0,2.61506276]
[1754592809139,0.8834,3824.1,3823.9,2.61510783]
[1754592809674,0.8834,3824.0,3823.8,6.57418585]
[1754592809823,0.1304,3824.2,3823.8,3.959]
[1754592810025,0.1304,3824.2,3823.9,3.16510149]
[1754592810364,0.8834,3824.1,3823.8,2.61518513]
[1754592810544,0.8834,3824.0,3823.9,2.61512575]
[1754592811063,0.8834,3824.0,3823.8,2.61517415]
[1754592811231,0.1324,3824.2,3823.9,2.61512801]
[1754592811435,0.1324,3824.2,3823.9,14.87997013]
[1754592811651,0.1324,3824.2,3824.1,5.61499437]
[1754592811652,0.002,3824.2,3824.1,5.61499437]
[1754592811970,0.002,3824.2,3824.1,9.57399437]
[1754592812137,0.002,3824.2,3824.1,5.61499437]
[1754592812573,0.8854,3824.2,3823.8,0.55]
[1754592812870,0.002,3824.2,3824.1,2.61499437]
[1754592813397,0.8854,3824.2,3824.1,2.61499437]
[1754592813666,0.002,3824.2,3824.1,2.61499437]
[1754592814571,0.002,3824.2,3824.1,5.43156391]
[1754592815475,0.002,3824.2,3824.1,4.97196391]
[1754592817071,0.002,3824.2,3824.1,5.43156391]
[1754592817271,0.002,3825.0,3824.9,6.16444743]
[1754592817469,0.002,3825.0,3824.9,20.49941756]
[1754592817842,0.002,3825.0,3824.9,20.95901756]
[1754592818170,0.002,3825.4,3824.9,20.95901756]
[1754592818370,0.8834,3826.5,3826.4,2.61342253]
[1754592818572,0.24301516,3826.6,3826.5,2.61335424]
[1754592818771,0.24301516,3826.6,3826.3,2.61346473]
[1754592818973,0.24301516,3826.5,3826.4,2.61342253]
[1754592819159,16.84282528,3827.3,3826.2,3.97]
[1754592819160,0.8834,3826.6,3826.2,3.97]
[1754592819673,0.8834,3826.6,3826.5,2.61335424]
[1754592819884,0.8834,3826.6,3825.7,0.55]
[1754592820051,0.8834,3826.5,3826.3,2.61343362]
[1754592820584,1.12639948,3826.8,3826.3,2.61349083]
[1754592820897,1.12639948,3826.7,3826.4,2.61342253]
[1754592821043,0.24299948,3826.6,3826.4,2.61342253]
[1754592821242,0.4302,3826.6,3826.4,2.61342253]
[1754592821473,0.4302,3826.6,3826.5,2.61335424]
[1754592821945,0.1304,3826.7,3826.6,2.61328594]
[1754592822275,0.24299948,3826.8,3826.7,2.61321765]
[1754592822478,0.8834,3827.0,3826.9,2.61308108]
[1754592822645,1.12656336,3827.0,3826.9,2.61308108]
[1754592822973,0.24316336,3827.0,3826.9,2.61308108]
[1754592823200,0.24316336,3827.0,3826.7,6.58120916]
[1754592823201,0.24316336,3827.0,3826.8,2.61313516]
[1754592823338,0.24316336,3826.9,3826.5,2.74371435]
[1754592823539,0.24316336,3826.8,3826.2,0.55]
[1754592823768,1.12656336,3826.7,3826.3,2.61348339]
[1754592823978,0.24316336,3826.6,3826.2,4.6484]
[1754592824280,0.24316336,3826.5,3826.2,4.6484]
[1754592824486,0.8834,3826.4,3826.2,3.29393048]
[1754592824646,0.24316336,3826.4,3826.3,2.61348681]
[1754592824953,0.24316336,3826.7,3826.2,3.29393377]
[1754592825160,0.54183646,3826.6,3826.2,3.29393377]
[1754592825349,0.24316336,3826.5,3826.2,3.29393377]
[1754592825550,0.8834,3826.4,3826.2,3.29393377]
[1754592825877,0.24316336,3826.5,3826.2,0.1304]
[1754592825878,0.8834,3826.3,3826.2,0.1304]
[1754592826477,1.12656336,3826.3,3826.0,2.6136949]
[1754592826779,1.12656336,3826.3,3825.3,2.61413783]
[1754592826780,1.0138,3826.2,3825.7,0.1304]
[1754592826939,0.24316336,3826.1,3825.7,2.61385805]
[1754592827144,0.24316336,3826.1,3825.8,3.0]
[1754592827379,0.24328697,3826.1,3825.6,2.61391533]
[1754592827585,1.0138,3826.0,3825.5,9.58103186]
[1754592827878,0.24328697,3825.9,3825.7,2.61389824]
[1754592828041,0.1304,3826.0,3825.5,6.967]
[1754592828241,0.8834,3825.9,3825.6,2.61396026]
[1754592828547,0.1304,3825.7,3824.9,0.4596]
[1754592828881,0.37372782,3825.8,3825.3,2.61416212]
[1754592829047,0.1304,3825.8,3825.4,3.07370571]
[1754592829242,0.1304,3825.8,3825.5,2.61402323]
[1754592829780,1.0138,3825.8,3825.5,2.61402323]
[1754592829963,0.2433253,3825.7,3825.6,2.61396905]
[1754592830165,0.3737253,3826.1,3825.7,2.61390072]